[Event "USA Championship Women 2021"]
[Site "Saint Louis"]
[Date "2021.10.09"]
[Round "4.4"]
[White "Paikidze, Nazi"]
[Black "Nemcova, Katerina"]
[Result "1/2-1/2"]
[ECO "D43"]
[WhiteElo "2374"]
[BlackElo "2331"]
[Annotator "RC"]
[PlyCount "95"]
[EventDate "2021.10.06"]
[EventCountry "USA"]
[SourceTitle "playchess.com"]
[Source "ChessBase"]
[SourceQuality "1"]
[TimeControl "40/5400+30:1800+30"]

1. d4 {[%emt 0:00:03]} d5 {[%emt 0:00:07]} 2. Nf3 {[%emt 0:00:10]} Nf6 {[%emt 0:00:09]} 3. c4 {[%emt 0:00:07]} e6 {[%emt 0:00:10]} 4. Nc3 {[%emt 0:00:08]} c6 {[%emt 0:00:04]} 5. Qd3 {[%emt 0:00:07]} dxc4 {[%emt 0:12:28]} 6. Qxc4 {[%emt 0:00:07]} b5 {[%emt 0:00:17]} 7. Qd3 {[%emt 0:00:06]} a6 {[%emt 0:05:39]} 8. g4 {[%emt 0:00:11]} c5 {[%emt 0:02:49]} 9. g5 {[%emt 0:00:42]} Nd5 {[%emt 0:15:43]} 10. Nxd5 {[%emt 0:00:44]} Qxd5 {[%emt 0:16:24]} 11. e4 {[%emt 0:00:14]} Qd7 {[%emt 0:02:05]} 12. dxc5 {[%emt 0:05:50]} Qxd3 {[%emt 0:02:31]} 13. Bxd3 {[%emt 0:00:06]} Bxc5 {[%emt 0:00:10]} 14. Ke2 {[%emt 0:05:46]} Nc6 {[%emt 0:06:09]} 15. Be3 {[%emt 0:03:27]} Bxe3 {[%emt 0:01:05]} 16. Kxe3 {[%emt 0:00:07]} Bb7 {[%emt 0:01:52]} 17. a4 {[%emt 0:24:17]} bxa4 {[%emt 0:11:26]} 18. Rxa4 {[%emt 0:03:24]} h6 {[%emt 0:03:47]} 19. Rc1 {[%emt 0:09:30]} hxg5 {[%emt 0:05:31]} 20. Bxa6 {[%emt 0:01:15]} Rxa6 {[%emt 0:00:27]} 21. Rxa6 {[%emt 0:00:06]} Bxa6 {[%emt 0:00:02]} 22. Rxc6 {[%emt 0:00:06]} Rh3 {[%emt 0:01:48]} 23. Rxa6 {[%emt 0:02:45]} g4 {[%emt 0:00:04]} 24. Ra8+ {[%emt 0:23:50]} Ke7 {[%emt 0:00:36]} 25. Ra7+ {[%emt 0:01:22]} Kf6 {[%emt 0:01:38]} 26. Ra3 {[%emt 0:14:19]} Rxf3+ {[%emt 0:00:33]} 27. Ke2 {[%emt 0:00:10]} Rf4 {[%emt 0:00:32]} 28. Ke3 {[%emt 0:01:17]} g5 {[%emt 0:01:13]} 29. Rc3 {[%emt 0:00:50]} Rf3+ {[%emt 0:00:34]} 30. Ke2 {[%emt 0:00:07]} Rf4 {[%emt 0:00:28]} 31. Ke3 {[%emt 0:01:07]} Kg6 {[%emt 0:05:03]} 32. Ra3 {[%emt 0:00:51]} Rf3+ {[%emt 0:00:53]} 33. Ke2 {[%emt 0:00:01]} Rf4 {[%emt 0:00:06]} 34. Ke3 {[%emt 0:02:09]} Kh5 {[%emt 0:00:14]} 35. Ra7 {[%emt 0:00:49]} Kh4 {[%emt 0:03:06]} 36. b4 {[%emt 0:01:03]} Kh3 {[%emt 0:00:04]} 37. Ra5 {[%emt 0:00:53]} Rf3+ {[%emt 0:01:04]} 38. Ke2 {[%emt 0:00:32]} f5 {[%emt 0:02:02]} 39. exf5 {[%emt 0:00:38]} exf5 {[%emt 0:00:04]} 40. Kf1 {[%emt 0:00:10]} Rb3 {[%emt 0:00:57]} 41. Rxf5 {[%emt 0:01:59]} Rb1+ {[%emt 0:04:23]} 42. Ke2 {[%emt 0:01:10]} Rxb4 {[%emt 0:01:18]} 43. Rxg5 {[%emt 0:00:31]} Kxh2 {[%emt 0:00:12]} 44. Kf1 {[%emt 0:02:33]} Rb1+ {[%emt 0:00:11]} 45. Ke2 {[%emt 0:00:04]} Rb4 {[%emt 0:00:03]} 46. Kf1 {[%emt 0:00:04]} Rb1+ {[%emt 0:00:09]} 47. Ke2 {[%emt 0:00:04]} Rb4 {[%emt 0:00:02]} 48. Kf1 {[%emt 0:00:21]} 1/2-1/2